[Event "*** Titled Tuesday Blitz"]
[Site "Chess.com"]
[Date "2020.04.21"]
[Round "4"]
[White "Sjakkerntobi"]
[Black "ehrenfeld"]
[Result "0-1"]
[WhiteElo "2224"]
[BlackElo "2462"]
[TimeControl "180+1"]
[EndTime "10:39:45 PDT"]
[Termination "ehrenfeld won by resignation"]

1. e4 {[%clk 0:03:00.9]} 1... e5 {[%clk 0:02:58.7]} 2. Nf3 {[%clk 0:03:00.9]}
2... Nc6 {[%clk 0:02:58.3]} 3. Bb5 {[%clk 0:03:01.5]} 3... a6 {[%clk 0:02:58.3]}
4. Ba4 {[%clk 0:03:02.2]} 4... Nf6 {[%clk 0:02:58.4]} 5. O-O {[%clk 0:03:02.9]}
5... Be7 {[%clk 0:02:58.6]} 6. Re1 {[%clk 0:03:03.4]} 6... b5 {[%clk 0:02:58.7]}
7. Bb3 {[%clk 0:03:04.1]} 7... d6 {[%clk 0:02:59.3]} 8. a4 {[%clk 0:03:02.7]}
8... Bd7 {[%clk 0:02:58.3]} 9. c3 {[%clk 0:03:01]} 9... O-O {[%clk 0:02:57.8]}
10. d3 {[%clk 0:03:00.7]} 10... Na5 {[%clk 0:02:56.7]} 11. Bc2 {[%clk
0:02:59.5]} 11... c5 {[%clk 0:02:56.6]} 12. Nbd2 {[%clk 0:02:59.3]} 12... Nc6
{[%clk 0:02:49.8]} 13. Nf1 {[%clk 0:02:58.5]} 13... h6 {[%clk 0:02:48.1]} 14.
Ng3 {[%clk 0:02:57.6]} 14... Re8 {[%clk 0:02:48.4]} 15. d4 {[%clk 0:02:53.6]}
15... cxd4 {[%clk 0:02:19.7]} 16. cxd4 {[%clk 0:02:54.5]} 16... exd4 {[%clk
0:02:10.6]} 17. Nxd4 {[%clk 0:02:53.7]} 17... Nxd4 {[%clk 0:02:10.5]} 18. Qxd4
{[%clk 0:02:54.6]} 18... bxa4 {[%clk 0:02:09.6]} 19. Bxa4 {[%clk 0:02:48.4]}
19... Bxa4 {[%clk 0:02:08.9]} 20. Rxa4 {[%clk 0:02:49.3]} 20... Bf8 {[%clk
0:01:40.4]} 21. Rd1 {[%clk 0:02:36.9]} 21... Qd7 {[%clk 0:01:21]} 22. Ra1 {[%clk
0:02:23.1]} 22... Qe6 {[%clk 0:01:15.9]} 23. Bd2 {[%clk 0:02:12.9]} 23... d5
{[%clk 0:01:05.1]} 24. exd5 {[%clk 0:02:07.3]} 24... Qxd5 {[%clk 0:01:03]} 25.
Bc3 {[%clk 0:02:04.5]} 25... Qxd4 {[%clk 0:01:00.9]} 26. Bxd4 {[%clk 0:02:05.4]}
26... Ne4 {[%clk 0:00:59.4]} 27. Nxe4 {[%clk 0:02:03.9]} 27... Rxe4 {[%clk
0:00:58.6]} 28. Be3 {[%clk 0:02:04]} 28... Re6 {[%clk 0:00:53.9]} 29. g4 {[%clk
0:01:56.4]} 29... Rb8 {[%clk 0:00:52.9]} 30. Ra2 {[%clk 0:01:54.7]} 30... g5
{[%clk 0:00:51.1]} 31. Kg2 {[%clk 0:01:53.9]} 31... Bg7 {[%clk 0:00:47.5]} 32.
Rb1 {[%clk 0:01:45.6]} 32... Rb3 {[%clk 0:00:45.8]} 33. Rd1 {[%clk 0:01:15.9]}
33... Rxb2 {[%clk 0:00:43.3]} 34. Rd8+ {[%clk 0:01:14.4]} 34... Kh7 {[%clk
0:00:42.9]} 35. Rxb2 {[%clk 0:01:15.3]} 35... Bxb2 {[%clk 0:00:42.2]} 36. Rd7
{[%clk 0:01:16.2]} 36... Kg6 {[%clk 0:00:40.9]} 37. Kf3 {[%clk 0:01:14.8]} 37...
Bf6 {[%clk 0:00:39]} 38. Ra7 {[%clk 0:01:13.4]} 38... Rc6 {[%clk 0:00:38.2]} 39.
h3 {[%clk 0:01:10.3]} 39... Be5 {[%clk 0:00:36.5]} 40. Ke4 {[%clk 0:01:09.1]}
40... Re6 {[%clk 0:00:34.4]} 41. Kf3 {[%clk 0:01:03.4]} 41... f6 {[%clk
0:00:30.8]} 42. Bc5 {[%clk 0:00:52.1]} 42... Rc6 {[%clk 0:00:30.4]} 43. Be3
{[%clk 0:00:51.6]} 43... f5 {[%clk 0:00:30.5]} 44. Ra8 {[%clk 0:00:46.5]} 44...
f4 {[%clk 0:00:29.5]} 45. Ba7 {[%clk 0:00:43]} 45... Rc3+ {[%clk 0:00:28.9]} 46.
Kg2 {[%clk 0:00:42.8]} 46... f3+ {[%clk 0:00:27.9]} 0-1

[Event "*** Titled Tuesday Blitz"]
[Site "Chess.com"]
[Date "2020.04.21"]
[Round "4"]
[White "queen_iryna"]
[Black "djano"]
[Result "0-1"]
[WhiteElo "2284"]
[BlackElo "2466"]
[TimeControl "180+1"]
[EndTime "10:39:48 PDT"]
[Termination "djano won by resignation"]

1. d4 {[%clk 0:03:00.9]} 1... Nf6 {[%clk 0:02:59.6]} 2. Bg5 {[%clk 0:02:59.9]}
2... e6 {[%clk 0:02:56.9]} 3. Nc3 {[%clk 0:02:58.9]} 3... c5 {[%clk 0:02:54.4]}
4. e3 {[%clk 0:02:42.1]} 4... Qb6 {[%clk 0:02:45.8]} 5. Bxf6 {[%clk 0:02:35.5]}
5... gxf6 {[%clk 0:02:46.7]} 6. Rb1 {[%clk 0:02:31.2]} 6... Nc6 {[%clk
0:02:41.8]} 7. Nf3 {[%clk 0:02:30.6]} 7... Rg8 {[%clk 0:02:31.2]} 8. g3 {[%clk
0:02:23.5]} 8... cxd4 {[%clk 0:02:31.1]} 9. exd4 {[%clk 0:02:22.6]} 9... Bb4
{[%clk 0:02:29.9]} 10. Bg2 {[%clk 0:02:18.9]} 10... Qa6 {[%clk 0:02:30.1]} 11.
Qe2 {[%clk 0:01:55.1]} 11... b6 {[%clk 0:02:05.1]} 12. Qe4 {[%clk 0:01:39.1]}
12... f5 {[%clk 0:02:00.6]} 13. Qh4 {[%clk 0:01:21.8]} 13... Rg4 {[%clk
0:01:40.6]} 14. Qxh7 {[%clk 0:01:19.5]} 14... Re4+ {[%clk 0:01:38.3]} 15. Kd1
{[%clk 0:01:05.5]} 15... Bxc3 {[%clk 0:01:29.5]} 16. Qg8+ {[%clk 0:00:58.4]}
16... Ke7 {[%clk 0:01:27]} 17. Qg5+ {[%clk 0:00:58]} 17... Kd6 {[%clk
0:01:20.1]} 18. bxc3 {[%clk 0:00:55.9]} 18... Qe2+ {[%clk 0:00:49.3]} 19. Kc1
{[%clk 0:00:55.1]} 19... Qxf2 {[%clk 0:00:49.5]} 20. Nh4 {[%clk 0:00:37.9]}
20... Re2 {[%clk 0:00:37.4]} 21. Qf4+ {[%clk 0:00:37.3]} 21... Qxf4+ {[%clk
0:00:33]} 22. gxf4 {[%clk 0:00:38.2]} 22... Bb7 {[%clk 0:00:28]} 23. Bf3 {[%clk
0:00:34.7]} 23... Rf2 {[%clk 0:00:27.2]} 24. Kb2 {[%clk 0:00:29.3]} 24... Rh8
{[%clk 0:00:26.7]} 25. Bxc6 {[%clk 0:00:22.3]} 25... Bxc6 {[%clk 0:00:25.9]} 26.
Nxf5+ {[%clk 0:00:21.4]} 26... exf5 {[%clk 0:00:25.3]} 27. Rhe1 {[%clk
0:00:22.3]} 27... Rhxh2 {[%clk 0:00:24.5]} 28. Rbc1 {[%clk 0:00:22.6]} 28... Be4
{[%clk 0:00:24.6]} 29. Rg1 {[%clk 0:00:21.2]} 29... Bxc2 {[%clk 0:00:22.3]} 30.
Ka3 {[%clk 0:00:20.9]} 30... Be4 {[%clk 0:00:22.2]} 31. Ra1 {[%clk 0:00:20.4]}
31... Bd5 {[%clk 0:00:21.7]} 32. Rg7 {[%clk 0:00:19.7]} 32... a5 {[%clk
0:00:20.7]} 33. c4 {[%clk 0:00:17.8]} 33... Bxc4 {[%clk 0:00:18.8]} 0-1

[Event "*** Titled Tuesday Blitz"]
[Site "Chess.com"]
[Date "2020.04.21"]
[Round "4"]
[White "checkmatequen"]
[Black "kingnb"]
[Result "0-1"]
[WhiteElo "2237"]
[BlackElo "2442"]
[TimeControl "180+1"]
[EndTime "10:39:48 PDT"]
[Termination "kingnb won by resignation"]

1. e4 {[%clk 0:03:00.9]} 1... d6 {[%clk 0:02:59.7]} 2. d4 {[%clk 0:03:00.7]}
2... Nf6 {[%clk 0:02:59.8]} 3. Nc3 {[%clk 0:03:01]} 3... g6 {[%clk 0:03:00.2]}
4. Be3 {[%clk 0:03:00.6]} 4... Bg7 {[%clk 0:03:00.5]} 5. f3 {[%clk 0:03:00.9]}
5... O-O {[%clk 0:03:01.1]} 6. Qd2 {[%clk 0:03:01.3]} 6... e5 {[%clk 0:02:56.2]}
7. Nge2 {[%clk 0:02:58.2]} 7... exd4 {[%clk 0:02:55.3]} 8. Nxd4 {[%clk
0:02:57.3]} 8... a6 {[%clk 0:02:55.9]} 9. O-O-O {[%clk 0:02:57]} 9... b5 {[%clk
0:02:54.3]} 10. Bh6 {[%clk 0:02:54.4]} 10... Nbd7 {[%clk 0:02:52]} 11. h4 {[%clk
0:02:52.3]} 11... c5 {[%clk 0:02:51.4]} 12. Nc6 {[%clk 0:02:45.1]} 12... Qb6
{[%clk 0:02:48.5]} 13. Ne7+ {[%clk 0:02:44.1]} 13... Kh8 {[%clk 0:02:46.3]} 14.
h5 {[%clk 0:02:34.3]} 14... Qd8 {[%clk 0:02:41]} 15. Ncd5 {[%clk 0:02:19]} 15...
Nxd5 {[%clk 0:02:30.8]} 16. Nxd5 {[%clk 0:02:19.9]} 16... Rg8 {[%clk 0:02:21.1]}
17. Qf4 {[%clk 0:01:57.6]} 17... Bxh6 {[%clk 0:02:20.1]} 18. Qxh6 {[%clk
0:01:57.3]} 18... Rg7 {[%clk 0:02:20.7]} 19. hxg6 {[%clk 0:01:52.6]} 19... fxg6
{[%clk 0:02:21.6]} 20. Nf4 {[%clk 0:01:52.9]} 20... Ne5 {[%clk 0:02:18.7]} 21.
g4 {[%clk 0:01:26]} 21... Raa7 {[%clk 0:02:18.9]} 22. Be2 {[%clk 0:01:23.7]}
22... Raf7 {[%clk 0:02:15.8]} 23. Rh3 {[%clk 0:01:15.1]} 23... Qf8 {[%clk
0:02:11.2]} 24. Rdh1 {[%clk 0:01:12.8]} 24... Rxf4 {[%clk 0:02:01.8]} 25. Qxh7+
{[%clk 0:01:06.8]} 25... Rxh7 {[%clk 0:02:02.7]} 26. Rxh7+ {[%clk 0:01:07]}
26... Kg8 {[%clk 0:02:03.6]} 27. Rh8+ {[%clk 0:01:06.9]} 27... Kf7 {[%clk
0:01:55]} 28. R1h7+ {[%clk 0:01:07.4]} 28... Ke8 {[%clk 0:01:54.8]} 29. Rxf8+
{[%clk 0:01:06.5]} 29... Rxf8 {[%clk 0:01:55.7]} 30. Rc7 {[%clk 0:01:06.6]}
30... Bd7 {[%clk 0:01:55.5]} 31. Ra7 {[%clk 0:01:04.2]} 31... Ke7 {[%clk
0:01:55.4]} 32. Rxa6 {[%clk 0:01:04.1]} 32... Nxf3 {[%clk 0:01:55.5]} 33. Rb6
{[%clk 0:01:00.2]} 33... Nd4 {[%clk 0:01:51.4]} 34. Bd1 {[%clk 0:00:45.3]} 34...
Rf1 {[%clk 0:01:50.4]} 35. Kd2 {[%clk 0:00:44.8]} 35... Rg1 {[%clk 0:01:48.4]}
36. c3 {[%clk 0:00:41.1]} 36... Nc6 {[%clk 0:01:47.6]} 37. Rxb5 {[%clk
0:00:39.1]} 37... Ne5 {[%clk 0:01:46.2]} 38. Rb7 {[%clk 0:00:37.8]} 38... Nxg4
{[%clk 0:01:42.8]} 39. Ba4 {[%clk 0:00:32]} 39... Ne5 {[%clk 0:01:42]} 40. Bxd7
{[%clk 0:00:29.4]} 40... Nxd7 {[%clk 0:01:42.9]} 41. a4 {[%clk 0:00:30.3]} 41...
Kd8 {[%clk 0:01:42.8]} 42. a5 {[%clk 0:00:28.5]} 42... Ra1 {[%clk 0:01:42.2]}
43. b4 {[%clk 0:00:28.3]} 43... cxb4 {[%clk 0:01:42.1]} 44. cxb4 {[%clk
0:00:29.2]} 44... g5 {[%clk 0:01:41.3]} 45. Rb5 {[%clk 0:00:27.8]} 45... Ne5
{[%clk 0:01:40]} 46. Rd5 {[%clk 0:00:24.4]} 46... Kc7 {[%clk 0:01:39.3]} 47. Ke3
{[%clk 0:00:23.2]} 47... Ra3+ {[%clk 0:01:36.5]} 48. Kf2 {[%clk 0:00:23]} 48...
g4 {[%clk 0:01:36.9]} 49. Kg2 {[%clk 0:00:16.8]} 49... Nd3 {[%clk 0:01:35]} 50.
b5 {[%clk 0:00:15.8]} 50... Nf4+ {[%clk 0:01:34.7]} 51. Kf2 {[%clk 0:00:16.1]}
51... Nxd5 {[%clk 0:01:35.6]} 52. b6+ {[%clk 0:00:17]} 52... Kb7 {[%clk
0:01:34.3]} 0-1

[Event "*** Titled Tuesday Blitz"]
[Site "Chess.com"]
[Date "2020.04.21"]
[Round "4"]
[White "RU_B9"]
[Black "ChadBiryani"]
[Result "1-0"]
[WhiteElo "1855"]
[BlackElo "2362"]
[TimeControl "180+1"]
[EndTime "10:39:50 PDT"]
[Termination "RU_B9 won by checkmate"]

1. c4 {[%clk 0:03:00]} 1... e5 {[%clk 0:02:51.6]} 2. Nc3 {[%clk 0:02:59.8]} 2...
Nc6 {[%clk 0:02:49.5]} 3. e3 {[%clk 0:02:59.6]} 3... Nf6 {[%clk 0:02:45.8]} 4.
Nf3 {[%clk 0:02:59.1]} 4... d6 {[%clk 0:02:43.9]} 5. d4 {[%clk 0:02:56.1]} 5...
exd4 {[%clk 0:02:42.9]} 6. exd4 {[%clk 0:02:55.1]} 6... Be7 {[%clk 0:02:43.5]}
7. Be2 {[%clk 0:02:46.4]} 7... O-O {[%clk 0:02:43.2]} 8. O-O {[%clk 0:02:46]}
8... Bf5 {[%clk 0:02:42.5]} 9. d5 {[%clk 0:02:45.4]} 9... Ne5 {[%clk 0:02:12.5]}
10. Nd4 {[%clk 0:02:43.6]} 10... Bg6 {[%clk 0:02:11.8]} 11. f4 {[%clk
0:02:39.4]} 11... c5 {[%clk 0:01:36.3]} 12. dxc6 {[%clk 0:02:31.7]} 12... Nxc6
{[%clk 0:01:29.2]} 13. Nxc6 {[%clk 0:02:31.1]} 13... bxc6 {[%clk 0:01:27.6]} 14.
f5 {[%clk 0:02:31]} 14... Qb6+ {[%clk 0:01:27.8]} 15. Kh1 {[%clk 0:02:29.8]}
15... Rad8 {[%clk 0:01:21.5]} 16. fxg6 {[%clk 0:02:26.8]} 16... fxg6 {[%clk
0:01:22.4]} 17. Qb3 {[%clk 0:02:15.8]} 17... Qc5 {[%clk 0:01:17.3]} 18. Bd2
{[%clk 0:02:02.4]} 18... d5 {[%clk 0:01:03.1]} 19. cxd5 {[%clk 0:01:59.4]} 19...
cxd5 {[%clk 0:01:03.1]} 20. Rac1 {[%clk 0:01:54.8]} 20... Kh8 {[%clk 0:01:02.7]}
21. Nb5 {[%clk 0:01:36]} 21... Qb6 {[%clk 0:00:53.4]} 22. Be3 {[%clk 0:01:29.8]}
22... Qe6 {[%clk 0:00:34.8]} 23. Nd4 {[%clk 0:01:27.1]} 23... Qe4 {[%clk
0:00:32.4]} 24. Bf3 {[%clk 0:01:21.3]} 24... Qh4 {[%clk 0:00:32.1]} 25. Ne6
{[%clk 0:01:19.2]} 25... Bd6 {[%clk 0:00:32.3]} 26. Bg1 {[%clk 0:01:11.4]} 26...
Ne4 {[%clk 0:00:11.9]} 27. Bxe4 {[%clk 0:01:03.5]} 27... dxe4 {[%clk 0:00:08.5]}
28. Nxf8 {[%clk 0:00:59.5]} 28... Bxf8 {[%clk 0:00:07.7]} 29. Qf7 {[%clk
0:00:57.4]} 29... Bd6 {[%clk 0:00:07.6]} 30. Rcd1 {[%clk 0:00:51.8]} 30... h6
{[%clk 0:00:05.7]} 31. Rxd6 {[%clk 0:00:50.2]} 31... Rxd6 {[%clk 0:00:05.9]} 32.
Qf8+ {[%clk 0:00:50.3]} 32... Kh7 {[%clk 0:00:06.5]} 33. Qxd6 {[%clk 0:00:50.3]}
33... Qg5 {[%clk 0:00:06.9]} 34. Qf8 {[%clk 0:00:48]} 34... Qb5 {[%clk
0:00:05.6]} 35. Rf7 {[%clk 0:00:46.3]} 35... Qxb2 {[%clk 0:00:05.3]} 36. h3
{[%clk 0:00:43.6]} 36... h5 {[%clk 0:00:05.6]} 37. Re7 {[%clk 0:00:39.3]} 37...
Qc2 {[%clk 0:00:03.1]} 38. Qxg7# {[%clk 0:00:36.7]} 1-0

[Event "*** Titled Tuesday Blitz"]
[Site "Chess.com"]
[Date "2020.04.21"]
[Round "4"]
[White "Egorov_Pavel"]
[Black "KNVB"]
[Result "0-1"]
[WhiteElo "2370"]
[BlackElo "2760"]
[TimeControl "180+1"]
[EndTime "10:39:51 PDT"]
[Termination "KNVB won on time"]

1. d4 {[%clk 0:03:00.9]} 1... b6 {[%clk 0:03:00.1]} 2. e4 {[%clk 0:02:59.5]}
2... Bb7 {[%clk 0:02:59.3]} 3. Nc3 {[%clk 0:02:59.2]} 3... e6 {[%clk 0:02:59.7]}
4. Nf3 {[%clk 0:02:57.4]} 4... Bb4 {[%clk 0:03:00]} 5. Bd3 {[%clk 0:02:56.7]}
5... Nf6 {[%clk 0:02:58.4]} 6. Qe2 {[%clk 0:02:51.1]} 6... d5 {[%clk 0:02:58.3]}
7. e5 {[%clk 0:02:33.4]} 7... Ne4 {[%clk 0:02:57.8]} 8. Bd2 {[%clk 0:02:05.1]}
8... Bxc3 {[%clk 0:02:57.6]} 9. Bxc3 {[%clk 0:01:59.7]} 9... c5 {[%clk
0:02:57.8]} 10. Bd2 {[%clk 0:01:23.1]} 10... h6 {[%clk 0:02:20.1]} 11. Bf4
{[%clk 0:01:01.9]} 11... Nc6 {[%clk 0:01:35.5]} 12. Bxe4 {[%clk 0:00:45.7]}
12... dxe4 {[%clk 0:01:36.4]} 13. Qxe4 {[%clk 0:00:38.8]} 13... Na5 {[%clk
0:01:32.1]} 14. Qd3 {[%clk 0:00:34.9]} 14... O-O {[%clk 0:01:10.8]} 15. O-O-O
{[%clk 0:00:29.6]} 15... Qd5 {[%clk 0:01:09.5]} 16. Kb1 {[%clk 0:00:25.7]} 16...
c4 {[%clk 0:01:07]} 17. Qe3 {[%clk 0:00:24.5]} 17... c3 {[%clk 0:00:52.5]} 18.
Bxh6 {[%clk 0:00:20.5]} 18... gxh6 {[%clk 0:00:47.5]} 19. Qxh6 {[%clk
0:00:21.4]} 19... Qe4 {[%clk 0:00:48.1]} 20. Rd3 {[%clk 0:00:17.2]} 20... Qg6
{[%clk 0:00:44.2]} 21. Qh4 {[%clk 0:00:14.1]} 21... Be4 {[%clk 0:00:43.3]} 22.
Rxc3 {[%clk 0:00:14.2]} 22... Rfc8 {[%clk 0:00:42.9]} 23. Ng5 {[%clk 0:00:04.2]}
23... Bxc2+ {[%clk 0:00:30.3]} 24. Ka1 {[%clk 0:00:03.5]} 24... Rxc3 {[%clk
0:00:23.8]} 25. bxc3 {[%clk 0:00:04.4]} 25... Nc4 {[%clk 0:00:24.7]} 26. Nh3
{[%clk 0:00:02.9]} 26... Bd1 {[%clk 0:00:12.3]} 27. Rxd1 {[%clk 0:00:01.8]}
27... Qc2 {[%clk 0:00:12.1]} 0-1

[Event "*** Titled Tuesday Blitz"]
[Site "Chess.com"]
[Date "2020.04.21"]
[Round "4"]
[White "robertofabregas"]
[Black "czasnaszachy"]
[Result "0-1"]
[WhiteElo "2107"]
[BlackElo "2344"]
[TimeControl "180+1"]
[EndTime "10:39:51 PDT"]
[Termination "czasnaszachy won by resignation"]

1. c4 {[%clk 0:03:00.9]} 1... g6 {[%clk 0:02:58.2]} 2. Nc3 {[%clk 0:03:00.5]}
2... Bg7 {[%clk 0:02:59]} 3. g3 {[%clk 0:03:00.9]} 3... d6 {[%clk 0:02:58.8]} 4.
Bg2 {[%clk 0:03:00.5]} 4... c5 {[%clk 0:02:58.9]} 5. Nf3 {[%clk 0:02:56.7]} 5...
e5 {[%clk 0:02:59.1]} 6. O-O {[%clk 0:02:45.1]} 6... Ne7 {[%clk 0:02:59.5]} 7.
d3 {[%clk 0:02:41]} 7... O-O {[%clk 0:02:59.2]} 8. Bg5 {[%clk 0:02:39.2]} 8...
f6 {[%clk 0:02:58.2]} 9. Be3 {[%clk 0:02:39.5]} 9... Nbc6 {[%clk 0:02:57.2]} 10.
a3 {[%clk 0:02:37.3]} 10... f5 {[%clk 0:02:54.4]} 11. Ne1 {[%clk 0:02:31.7]}
11... f4 {[%clk 0:02:53]} 12. Bd2 {[%clk 0:02:25.6]} 12... Be6 {[%clk
0:02:49.8]} 13. Nc2 {[%clk 0:02:21.7]} 13... Qd7 {[%clk 0:02:39.1]} 14. b4
{[%clk 0:02:02.9]} 14... Nd4 {[%clk 0:02:26.4]} 15. Rb1 {[%clk 0:01:46.8]} 15...
Bh3 {[%clk 0:02:01.9]} 16. bxc5 {[%clk 0:01:44.6]} 16... Bxg2 {[%clk 0:02:00.1]}
17. Kxg2 {[%clk 0:01:45.1]} 17... dxc5 {[%clk 0:01:57.3]} 18. Ne4 {[%clk
0:01:09.6]} 18... Nxe2 {[%clk 0:01:50.2]} 19. Nxc5 {[%clk 0:00:37.3]} 19... f3+
{[%clk 0:01:17.4]} 20. Kh1 {[%clk 0:00:35.6]} 20... Qh3 {[%clk 0:01:13.5]} 21.
Rg1 {[%clk 0:00:33.4]} 21... Nxg1 {[%clk 0:00:45.2]} 22. Qxg1 {[%clk 0:00:32.3]}
22... Nf5 {[%clk 0:00:39.6]} 23. Ne3 {[%clk 0:00:21.7]} 23... Nd4 {[%clk
0:00:36.4]} 24. Rxb7 {[%clk 0:00:14.7]} 24... Rab8 {[%clk 0:00:27]} 25. Rb4
{[%clk 0:00:11.7]} 25... a5 {[%clk 0:00:25.9]} 26. Rxb8 {[%clk 0:00:10.2]} 26...
Rxb8 {[%clk 0:00:26.4]} 27. Bxa5 {[%clk 0:00:10.3]} 27... Ne2 {[%clk 0:00:17.4]}
28. Qf1 {[%clk 0:00:09.4]} 28... Qxf1+ {[%clk 0:00:15.8]} 29. Nxf1 {[%clk
0:00:10.3]} 29... Rb1 {[%clk 0:00:16.1]} 0-1

[Event "*** Titled Tuesday Blitz"]
[Site "Chess.com"]
[Date "2020.04.21"]
[Round "4"]
[White "PawnEatingZombie"]
[Black "ChrisTool2"]
[Result "0-1"]
[WhiteElo "2130"]
[BlackElo "2406"]
[TimeControl "180+1"]
[EndTime "10:39:52 PDT"]
[Termination "ChrisTool2 won on time"]

1. d4 {[%clk 0:03:00.9]} 1... Nf6 {[%clk 0:02:58.8]} 2. c4 {[%clk 0:03:00.7]}
2... e6 {[%clk 0:02:58.9]} 3. Nc3 {[%clk 0:03:00.9]} 3... d5 {[%clk 0:02:57.4]}
4. cxd5 {[%clk 0:02:59.7]} 4... exd5 {[%clk 0:02:57.3]} 5. Bg5 {[%clk
0:02:59.2]} 5... Bb4 {[%clk 0:02:56.6]} 6. e3 {[%clk 0:02:59.1]} 6... c5 {[%clk
0:02:53.9]} 7. dxc5 {[%clk 0:02:56.2]} 7... O-O {[%clk 0:02:30.7]} 8. Bd3 {[%clk
0:02:30]} 8... Nbd7 {[%clk 0:02:22.2]} 9. Ne2 {[%clk 0:02:21.7]} 9... Nxc5
{[%clk 0:02:13.1]} 10. O-O {[%clk 0:02:18.5]} 10... Nxd3 {[%clk 0:01:45.3]} 11.
Qxd3 {[%clk 0:02:19.4]} 11... Be6 {[%clk 0:01:42.8]} 12. Rac1 {[%clk 0:02:13.5]}
12... Be7 {[%clk 0:01:39]} 13. Rfd1 {[%clk 0:02:09.9]} 13... Qa5 {[%clk
0:01:28.7]} 14. Nd4 {[%clk 0:02:01.2]} 14... Rad8 {[%clk 0:01:22.1]} 15. a3
{[%clk 0:01:57.4]} 15... h6 {[%clk 0:01:15]} 16. Bh4 {[%clk 0:01:56.4]} 16... a6
{[%clk 0:01:05.6]} 17. f3 {[%clk 0:01:55]} 17... Rd7 {[%clk 0:01:01.8]} 18. Nce2
{[%clk 0:01:42.5]} 18... Qb6 {[%clk 0:00:52.5]} 19. b4 {[%clk 0:01:26.8]} 19...
Rfd8 {[%clk 0:00:51.7]} 20. h3 {[%clk 0:01:13.9]} 20... a5 {[%clk 0:00:44.4]}
21. b5 {[%clk 0:01:10.6]} 21... Nh5 {[%clk 0:00:27.7]} 22. Bxe7 {[%clk
0:01:08.6]} 22... Rxe7 {[%clk 0:00:28.6]} 23. Rc3 {[%clk 0:01:00]} 23... Qd6
{[%clk 0:00:25.1]} 24. Rdc1 {[%clk 0:00:52.4]} 24... Ng3 {[%clk 0:00:21.7]} 25.
Nf4 {[%clk 0:00:31.7]} 25... Bd7 {[%clk 0:00:19.1]} 26. Kf2 {[%clk 0:00:20.9]}
26... g5 {[%clk 0:00:15.2]} 27. Kxg3 {[%clk 0:00:19]} 27... gxf4+ {[%clk
0:00:14.7]} 28. exf4 {[%clk 0:00:19.9]} 28... Rde8 {[%clk 0:00:14.4]} 29. Nf5
{[%clk 0:00:08.4]} 29... Qg6+ {[%clk 0:00:12.6]} 30. Kh2 {[%clk 0:00:03.4]}
30... Bxf5 {[%clk 0:00:12.5]} 31. Qxd5 {[%clk 0:00:03.8]} 31... Re2 {[%clk
0:00:11.4]} 0-1

[Event "*** Titled Tuesday Blitz"]
[Site "Chess.com"]
[Date "2020.04.21"]
[Round "4"]
[White "wonderfultime"]
[Black "lilleper1"]
[Result "1-0"]
[WhiteElo "2907"]
[BlackElo "2725"]
[TimeControl "180+1"]
[EndTime "10:39:55 PDT"]
[Termination "wonderfultime won by resignation"]

1. d4 {[%clk 0:02:59.4]} 1... Nf6 {[%clk 0:02:59.2]} 2. Nf3 {[%clk 0:02:58.3]}
2... d5 {[%clk 0:02:58.6]} 3. Bf4 {[%clk 0:02:58.5]} 3... e6 {[%clk 0:02:58.8]}
4. e3 {[%clk 0:02:59.1]} 4... Bd6 {[%clk 0:02:58.8]} 5. Bg3 {[%clk 0:02:59.7]}
5... O-O {[%clk 0:02:58.7]} 6. c4 {[%clk 0:02:57.1]} 6... c5 {[%clk 0:02:58.1]}
7. Nc3 {[%clk 0:02:52]} 7... cxd4 {[%clk 0:02:54.6]} 8. Nxd4 {[%clk 0:02:51.2]}
8... Bxg3 {[%clk 0:02:37.3]} 9. hxg3 {[%clk 0:02:52.1]} 9... dxc4 {[%clk
0:02:32.2]} 10. Bxc4 {[%clk 0:02:52]} 10... e5 {[%clk 0:02:29.1]} 11. Ndb5
{[%clk 0:02:13.3]} 11... Qe7 {[%clk 0:02:26.5]} 12. Qd6 {[%clk 0:02:12.2]} 12...
Qxd6 {[%clk 0:02:10.8]} 13. Nxd6 {[%clk 0:02:13.1]} 13... Nc6 {[%clk 0:02:09]}
14. Rd1 {[%clk 0:02:10.2]} 14... Ne8 {[%clk 0:01:49.2]} 15. Nce4 {[%clk
0:01:47.9]} 15... Nxd6 {[%clk 0:01:34.2]} 16. Nxd6 {[%clk 0:01:48.8]} 16... Rb8
{[%clk 0:01:23.5]} 17. b4 {[%clk 0:01:40.4]} 17... Be6 {[%clk 0:01:16.7]} 18.
Bxe6 {[%clk 0:01:38.2]} 18... fxe6 {[%clk 0:01:17.6]} 19. b5 {[%clk 0:01:34.6]}
19... Nb4 {[%clk 0:01:16.2]} 20. Rd2 {[%clk 0:01:10.3]} 20... Rfd8 {[%clk
0:01:13.9]} 21. Rh4 {[%clk 0:00:59.2]} 21... a5 {[%clk 0:00:56.3]} 22. a3 {[%clk
0:00:54.6]} 22... Nd5 {[%clk 0:00:47.9]} 23. Nc4 {[%clk 0:00:54.7]} 23... Nc3
{[%clk 0:00:45.9]} 24. b6 {[%clk 0:00:47.6]} 24... Rbc8 {[%clk 0:00:27.6]} 25.
Nxe5 {[%clk 0:00:36.2]} 25... Rxd2 {[%clk 0:00:25.6]} 26. Kxd2 {[%clk
0:00:37.1]} 26... Nb1+ {[%clk 0:00:26]} 27. Ke2 {[%clk 0:00:34.4]} 27... Nxa3
{[%clk 0:00:20]} 28. Ra4 {[%clk 0:00:34.2]} 28... Rc5 {[%clk 0:00:15.9]} 29. Nd3
{[%clk 0:00:28.8]} 29... Rc3 {[%clk 0:00:14.2]} 30. Rxa5 {[%clk 0:00:28.3]}
30... Nc4 {[%clk 0:00:11.2]} 31. Rc5 {[%clk 0:00:25.4]} 31... Rc2+ {[%clk
0:00:10.5]} 32. Ke1 {[%clk 0:00:25.8]} 32... Rc3 {[%clk 0:00:07.6]} 33. Rc8+
{[%clk 0:00:24.9]} 33... Kf7 {[%clk 0:00:06.4]} 34. Ne5+ {[%clk 0:00:25.8]}
34... Kf6 {[%clk 0:00:03.8]} 35. Nxc4 {[%clk 0:00:25.1]} 1-0